{"text_format":"3","workbook":"xlsx","n_sheets":4,"sheets":["Obrazac za ponudu","Podaci iz grafikona","Analiza troškova","Rezime troškova ponude"],"not_rendered":{"charts":1,"images":2,"defined_names":11},"read":"whole","date_system":"1900"}

{"sheet":"Obrazac za ponudu","index":0,"n_rows":21,"n_cols":6,"rows_kept":21,"merged":[[0,1,0,4],[1,1,1,2],[7,1,8,1],[7,2,8,2],[10,1,10,5],[12,1,12,5],[14,1,14,5],[15,1,15,2],[15,4,15,5],[16,1,16,2],[16,4,16,5],[18,1,18,5],[19,1,19,2],[19,4,19,5],[20,1,20,2],[20,4,20,5]]}
[null,"Obrazac ponude za gradnju"]
[null,"Informacije o vlasniku",null,null,"Informacije o izvođaču"]
[null,"Ime","Unesite ime vlasnika u ovu ćeliju",null,"Preduzeće","Unesite ime preduzeća izvođača radova u ovu ćeliju"]
[null,"Adresa","Unesite adresu vlasnika u ovu ćeliju",null,"Ime","Unesite ime izvođača radova u ovu ćeliju"]
[null,"Grad, poštanski broj","Unesite grad, državu i poštanski broj vlasnika u ovu ćeliju",null,"Adresa","Unesite adresu izvođača radova u ovu ćeliju"]
[null,"Telefon","Unesite broj telefona vlasnika u ovu ćeliju",null,"Grad, poštanski broj","Unesite grad, državu i poštanski broj izvođača radova u ovu ćeliju"]
[null,"Adresa e-pošte","Unesite adresu e-pošte vlasnika u ovu ćeliju",null,"Telefon","Unesite broj telefona izvođača radova u ovu ćeliju"]
[null,"Ime projekta","Unesite ime projekta u ovu ćeliju",null,"Adresa e-pošte","Unesite adresu e-pošte izvođača radova u ovu ćeliju "]
[{"$nulls":4},"Datum završavanja","Unesite datum dovršavanja u ovu ćeliju"]
[null,"Opseg rada"]
[null,"Opseg posla projekta ide ovde. Otkucajte sve specifikacije koje želite. \n\nUzorak teksta: Ovo će biti maketa projekat izgradnje velikog skupa stepenica. Koristićemo samo 2x4 i 2x8 drva, kao i nosače greda, da bismo napravili okvir. Stepenice će biti isečene iz materijala 2x4. Neće se koristiti šrafovi manji od 2\".  Ekseri neće biti manji od 10 penija. Dizajnirana težina treba da izdrži najmanje 500 funti po koraku. Stepenice će biti u ravni sa onim u kući. Podna daska će biti pričvršćena za kuću. Izvođač će se pobrinuti za čišćenje."]
[null,"Nije uključeno"]
[null,"Detalji projekta koji nisu uključeni idu ovde. Otkucajte sve što nije uključeno u ovu ponudu. \n\nUzorak teksta: Nijedna šina neće biti instalirana. Vlasnik mora pripremiti teren. Stepenice će ofarbati vlasnik."]
[null,"Predlog preduzeća"]
[null,"Predlog preduzeća ide ovde. Otkucajte pregled predloga, uključujući ko predlaže posao, očekivani datum završetka i iznos predloga.\n\nUzorak teksta: Mi, ime preduzeća, predlažemo gorenavedeni opseg posla, koji treba dovršiti do datuma dovršavanja za iznos ukupnog iznosa."]
[]
[null,"Prosledio (predstavnik preduzeća)",null,null,"Datum"]
[null,"Prihvatanje vlasnika"]
[null,"Prihvatanje vlasnika ide ovde. Otkucajte ime vlasnika u izvodu potvrde koji sadrži datum dovršavanja i ukupan iznos naveden u predlogu preduzeća. \n\nUzorak teksta: Ja, ime vlasnika, prihvatam gorenavedeni opseg posla, koji je predložen za dovršavanja do datuma dovršavanja za iznos ukupnog iznosa."]
[]
[null,"Prosledio (vlasnik kuće ili ovlašćeni predstavnik)",null,null,"Datum"]

{"sheet":"Podaci iz grafikona","index":1,"n_rows":7,"n_cols":3,"rows_kept":7,"hidden":true}
[]
[null,null,"Ukupno"]
[null,{"$f":"INDEX(StavkePonude[#Data],MATCH(1,StavkePonude[Rangirani troškovi],0),2)","v":"Troškovi radnika"},{"$f":"INDEX(StavkePonude[#Data],MATCH(1,StavkePonude[Rangirani troškovi],0),4)","v":200}]
[null,{"$f":"INDEX(StavkePonude[#Data],MATCH(2,StavkePonude[Rangirani troškovi],0),2)","v":"2x4x10 drvo"},{"$f":"INDEX(StavkePonude[#Data],MATCH(2,StavkePonude[Rangirani troškovi],0),4)","v":99.39999999999999}]
[null,{"$f":"INDEX(StavkePonude[#Data],MATCH(3,StavkePonude[Rangirani troškovi],0),2)","v":"Nosači za grede"},{"$f":"INDEX(StavkePonude[#Data],MATCH(3,StavkePonude[Rangirani troškovi],0),4)","v":74.7}]
[null,{"$f":"INDEX(StavkePonude[#Data],MATCH(4,StavkePonude[Rangirani troškovi],0),2)","v":"2x8x10 drvo"},{"$f":"INDEX(StavkePonude[#Data],MATCH(4,StavkePonude[Rangirani troškovi],0),4)","v":33.75}]
[null,{"$f":"INDEX(StavkePonude[#Data],MATCH(5,StavkePonude[Rangirani troškovi],0),2)","v":"Par rukavica, kožne"},{"$f":"INDEX(StavkePonude[#Data],MATCH(5,StavkePonude[Rangirani troškovi],0),4)","v":15.5}]

{"sheet":"Analiza troškova","index":2,"n_rows":14,"n_cols":6,"rows_kept":14,"merged":[[0,1,0,4],[1,1,1,4]]}
[null,"Analiza troškova",{"$nulls":3}," "]
[null,"Lista materijala i troškova"]
[null,"Kol.","Opis","Trošak","Ukupno","Rangirani troškovi"]
[null,5,"2x8x10 drvo",{"v":6.75,"d":"6.75 RSD"},{"$f":"IFERROR(StavkePonude[[#This Row],[Trošak]]*StavkePonude[[#This Row],[Kol.]], \"\")","v":{"v":33.75,"d":"33.75 RSD"}},{"$f":"_xlfn.RANK.EQ(StavkePonude[[#This Row],[Ukupno]],StavkePonude[Ukupno])","v":4}]
[null,20,"2x4x10 drvo",{"v":4.97,"d":"4.97 RSD"},{"$f":"IFERROR(StavkePonude[[#This Row],[Trošak]]*StavkePonude[[#This Row],[Kol.]], \"\")","v":{"v":99.39999999999999,"d":"99.40 RSD"}},{"$f":"_xlfn.RANK.EQ(StavkePonude[[#This Row],[Ukupno]],StavkePonude[Ukupno])","v":2}]
[null,30,"Nosači za grede",{"v":2.49,"d":"2.49 RSD"},{"$f":"IFERROR(StavkePonude[[#This Row],[Trošak]]*StavkePonude[[#This Row],[Kol.]], \"\")","v":{"v":74.7,"d":"74.70 RSD"}},{"$f":"_xlfn.RANK.EQ(StavkePonude[[#This Row],[Ukupno]],StavkePonude[Ukupno])","v":3}]
[null,2,"Kutija šrafova, 2 inča",{"v":6.67,"d":"6.67 RSD"},{"$f":"IFERROR(StavkePonude[[#This Row],[Trošak]]*StavkePonude[[#This Row],[Kol.]], \"\")","v":{"v":13.34,"d":"13.34 RSD"}},{"$f":"_xlfn.RANK.EQ(StavkePonude[[#This Row],[Ukupno]],StavkePonude[Ukupno])","v":6}]
[null,2,"Kutija eksera, 10 penija",{"v":3.25,"d":"3.25 RSD"},{"$f":"IFERROR(StavkePonude[[#This Row],[Trošak]]*StavkePonude[[#This Row],[Kol.]], \"\")","v":{"v":6.5,"d":"6.50 RSD"}},{"$f":"_xlfn.RANK.EQ(StavkePonude[[#This Row],[Ukupno]],StavkePonude[Ukupno])","v":7}]
[null,2,"Par rukavica, kožne",{"v":7.75,"d":"7.75 RSD"},{"$f":"IFERROR(StavkePonude[[#This Row],[Trošak]]*StavkePonude[[#This Row],[Kol.]], \"\")","v":{"v":15.5,"d":"15.50 RSD"}},{"$f":"_xlfn.RANK.EQ(StavkePonude[[#This Row],[Ukupno]],StavkePonude[Ukupno])","v":5}]
[null,2,"Troškovi radnika",{"v":100,"d":"100.00 RSD"},{"$f":"IFERROR(StavkePonude[[#This Row],[Trošak]]*StavkePonude[[#This Row],[Kol.]], \"\")","v":{"v":200,"d":"200.00 RSD"}},{"$f":"_xlfn.RANK.EQ(StavkePonude[[#This Row],[Ukupno]],StavkePonude[Ukupno])","v":1}]
[4,null,null,"Međuvrednost",{"$f":"SUBTOTAL(109,StavkePonude[Ukupno])","v":{"v":443.18999999999994,"d":"443.19 RSD"}}]
[5,null,null,"Poreska stopa",{"v":0.075,"d":"7.50%"}]
[{"$nulls":3},"Porez",{"$f":"IFERROR(PoreskaStopa*StavkePonude[[#Totals],[Ukupno]], \"\")","v":{"v":33.23924999999999,"d":"33.24 RSD"}}]
[{"$nulls":3},"Sveukupno",{"$f":"IFERROR(Porez+StavkePonude[[#Totals],[Ukupno]], \"\")","v":{"v":476.4292499999999,"d":"476.43 RSD"}}]

{"sheet":"Rezime troškova ponude","index":3,"n_rows":3,"n_cols":4,"rows_kept":3}
[null,"Rezime troškova ponude"]
[null,"Pregled materijala i troškova",null,"Beleške"]
[null,"Kružni grafikon koji prikazuje 5 najvećih troškova po materijalu. Podaci su zasnovani na tabeli Stavke u ponudi u radnom listu Analiza troškova",null,"Unesite beleške u ovu ćeliju."]